Workbook

Sheet Sheet1
B1: End Behavior:
B2: A Polynomial vs. Its Power Function
B4: This graphing utility produces the graph
B5: of any desired polynomial (up to 8th degree)
B6: y = c0x8+c1x7+c2x6+c3x5+c4x4+c5x3+c6x2+c7x+c8
B7: where c0, c1, c2, c3, c4, c5, c6, c7, c8 are any coefficients
B8: vs. the power function from its leading term.
A10: First enter the value for each of the coefficients in
B11: y = c0x8+ c1x7+ c2x6+ c3x5+ c4x4+ c5x3+ c6x2+ c7x+ c8
B12: (Use 0's if you don't want some of the terms)
A14: c0 = | B14: 1
A15: c1 = | B15: -1
A16: c2 = | B16: 4 | H16: ="The graph of y = " &TEXT(a0,"0.00") &"x^8+"&TEXT(b0,"0.00")&"x^7 + " &TEXT(c0,"0.00") &"x^6+"&TEXT(d0,"0.00")&"x^5 +"&TEXT(e0,"0.00")&"x^4 + " &TEXT(f0,"0.00") &"x^3+"&TEXT(g0,"0.00")&"x^2 +" &TEXT(h0,"0.00") &"x+"&TEXT(i0,"0.00") -> The graph of y = 1.00x^8+-1.00x^7 + 4.00x^6+-6.00x^5 +3.00x^4 + -7.00x^3+2.00x^2 +5.00x+-4.00
A17: c3 = | B17: -6
A18: c4 = | B18: 3
A19: c5 = | B19: -7 | I19: Select the the extent of the interval:
A20: c6 = | B20: 2
A21: c7 = | B21: 5 | L21: 1
A22: c8 = | B22: -4
I23: The interval is from | K23: =-L21-1 -> -2 | L23: to | M23: =L21+1 -> 2
A27: Click each item below for suggestions and investigations
C28: Item1
C29: Item 2
C30: Item 3
A36: Created by: Sheldon P. Gordon
A37: Farmingdale StateCollege
A38: Development of this module was supported by the
A39: NSF's Division of Undergraduate Education
A40: under grants DUE-0310123 and DUE-0442160.

Sheet Sheet2
A2: x | B2: y
A3: =xMin -> -2 | B3: =Sheet1!$B$14*A3^8+Sheet1!$B$15*A3^7+Sheet1!$B$16*A3^6+Sheet1!$B$17*A3^5+Sheet1!$B$18*A3^4+Sheet1!$B$19*A3^3+Sheet1!$B$20*A3^2+Sheet1!$B$21*A3+Sheet1!$B$22 -> 930 | C3: =cc*A3^p -> 256 | E3: DeltaX= | F3: =(xMax - xMin)/200 -> 0.02
A4: =A3+dx -> -1.98 | B4: =Sheet1!$B$14*A4^8+Sheet1!$B$15*A4^7+Sheet1!$B$16*A4^6+Sheet1!$B$17*A4^5+Sheet1!$B$18*A4^4+Sheet1!$B$19*A4^3+Sheet1!$B$20*A4^2+Sheet1!$B$21*A4+Sheet1!$B$22 -> 873.5221666 | C4: 236.2226418
A5: -1.96 | B5: =Sheet1!$B$14*A5^8+Sheet1!$B$15*A5^7+Sheet1!$B$16*A5^6+Sheet1!$B$17*A5^5+Sheet1!$B$18*A5^4+Sheet1!$B$19*A5^3+Sheet1!$B$20*A5^2+Sheet1!$B$21*A5+Sheet1!$B$22 -> 820.1074682 | C5: 217.7953338
A6: -1.94 | B6: =Sheet1!$B$14*A6^8+Sheet1!$B$15*A6^7+Sheet1!$B$16*A6^6+Sheet1!$B$17*A6^5+Sheet1!$B$18*A6^4+Sheet1!$B$19*A6^3+Sheet1!$B$20*A6^2+Sheet1!$B$21*A6+Sheet1!$B$22 -> 769.6088132 | C6: 200.6383 | E6: Point
A7: -1.92 | B7: =Sheet1!$B$14*A7^8+Sheet1!$B$15*A7^7+Sheet1!$B$16*A7^6+Sheet1!$B$17*A7^5+Sheet1!$B$18*A7^4+Sheet1!$B$19*A7^3+Sheet1!$B$20*A7^2+Sheet1!$B$21*A7+Sheet1!$B$22 -> 721.8852124 | C7: 184.6757322 | E7: =Sheet1!M26 -> 0 | F7: =Sheet1!M27 -> 0
A8: -1.9 | B8: =Sheet1!$B$14*A8^8+Sheet1!$B$15*A8^7+Sheet1!$B$16*A8^6+Sheet1!$B$17*A8^5+Sheet1!$B$18*A8^4+Sheet1!$B$19*A8^3+Sheet1!$B$20*A8^2+Sheet1!$B$21*A8+Sheet1!$B$22 -> 676.8015683 | C8: 169.8356304
A9: -1.88 | B9: =Sheet1!$B$14*A9^8+Sheet1!$B$15*A9^7+Sheet1!$B$16*A9^6+Sheet1!$B$17*A9^5+Sheet1!$B$18*A9^4+Sheet1!$B$19*A9^3+Sheet1!$B$20*A9^2+Sheet1!$B$21*A9+Sheet1!$B$22 -> 634.2284707 | C9: 156.0496483
A10: -1.86 | B10: =Sheet1!$B$14*A10^8+Sheet1!$B$15*A10^7+Sheet1!$B$16*A10^6+Sheet1!$B$17*A10^5+Sheet1!$B$18*A10^4+Sheet1!$B$19*A10^3+Sheet1!$B$20*A10^2+Sheet1!$B$21*A10+Sheet1!$B$22 -> 594.0419971 | C10: 143.2529433 | D10: lead coef= | E10: =IF(a0<>0,a0,IF(b0<>0,b0,IF(c0<>0,c0,IF(d0<>0,d0,IF(e0<>0,e0,IF(f0<>0,f0,IF(g0<>0,g0,IF(h0<>0,h0,i0)))))))) -> 1
A11: -1.84 | B11: =Sheet1!$B$14*A11^8+Sheet1!$B$15*A11^7+Sheet1!$B$16*A11^6+Sheet1!$B$17*A11^5+Sheet1!$B$18*A11^4+Sheet1!$B$19*A11^3+Sheet1!$B$20*A11^2+Sheet1!$B$21*A11+Sheet1!$B$22 -> 556.1235194 | C11: 131.3840315 | D11: power = | E11: =IF(a0<>0,8,IF(b0<>0,7,IF(c0<>0,6,IF(d0<>0,5,IF(e0<>0,4,IF(f0<>0,3,IF(g0<>0,2,IF(h0<>0,1,0)))))))) -> 8
A12: -1.82 | B12: =Sheet1!$B$14*A12^8+Sheet1!$B$15*A12^7+Sheet1!$B$16*A12^6+Sheet1!$B$17*A12^5+Sheet1!$B$18*A12^4+Sheet1!$B$19*A12^3+Sheet1!$B$20*A12^2+Sheet1!$B$21*A12+Sheet1!$B$22 -> 520.3595152 | C12: 120.3846471
A13: -1.8 | B13: =Sheet1!$B$14*A13^8+Sheet1!$B$15*A13^7+Sheet1!$B$16*A13^6+Sheet1!$B$17*A13^5+Sheet1!$B$18*A13^4+Sheet1!$B$19*A13^3+Sheet1!$B$20*A13^2+Sheet1!$B$21*A13+Sheet1!$B$22 -> 486.641385 | C13: 110.1996058
A14: -1.78 | B14: =Sheet1!$B$14*A14^8+Sheet1!$B$15*A14^7+Sheet1!$B$16*A14^6+Sheet1!$B$17*A14^5+Sheet1!$B$18*A14^4+Sheet1!$B$19*A14^3+Sheet1!$B$20*A14^2+Sheet1!$B$21*A14+Sheet1!$B$22 -> 454.8652737 | C14: 100.7766734
A15: -1.76 | B15: =Sheet1!$B$14*A15^8+Sheet1!$B$15*A15^7+Sheet1!$B$16*A15^6+Sheet1!$B$17*A15^5+Sheet1!$B$18*A15^4+Sheet1!$B$19*A15^3+Sheet1!$B$20*A15^2+Sheet1!$B$21*A15+Sheet1!$B$22 -> 424.9318982 | C15: 92.06643835
A16: -1.74 | B16: =Sheet1!$B$14*A16^8+Sheet1!$B$15*A16^7+Sheet1!$B$16*A16^6+Sheet1!$B$17*A16^5+Sheet1!$B$18*A16^4+Sheet1!$B$19*A16^3+Sheet1!$B$20*A16^2+Sheet1!$B$21*A16+Sheet1!$B$22 -> 396.7463792 | C16: 84.02218792
A17: -1.72 | B17: =Sheet1!$B$14*A17^8+Sheet1!$B$15*A17^7+Sheet1!$B$16*A17^6+Sheet1!$B$17*A17^5+Sheet1!$B$18*A17^4+Sheet1!$B$19*A17^3+Sheet1!$B$20*A17^2+Sheet1!$B$21*A17+Sheet1!$B$22 -> 370.2180778 | C17: 76.59978934
A18: -1.7 | B18: =Sheet1!$B$14*A18^8+Sheet1!$B$15*A18^7+Sheet1!$B$16*A18^6+Sheet1!$B$17*A18^5+Sheet1!$B$18*A18^4+Sheet1!$B$19*A18^3+Sheet1!$B$20*A18^2+Sheet1!$B$21*A18+Sheet1!$B$22 -> 345.2604377 | C18: 69.75757441
A19: -1.68 | B19: =Sheet1!$B$14*A19^8+Sheet1!$B$15*A19^7+Sheet1!$B$16*A19^6+Sheet1!$B$17*A19^5+Sheet1!$B$18*A19^4+Sheet1!$B$19*A19^3+Sheet1!$B$20*A19^2+Sheet1!$B$21*A19+Sheet1!$B$22 -> 321.7908308 | C19: 63.45622812
A20: -1.66 | B20: =Sheet1!$B$14*A20^8+Sheet1!$B$15*A20^7+Sheet1!$B$16*A20^6+Sheet1!$B$17*A20^5+Sheet1!$B$18*A20^4+Sheet1!$B$19*A20^3+Sheet1!$B$20*A20^2+Sheet1!$B$21*A20+Sheet1!$B$22 -> 299.7304084 | C20: 57.65868114
A21: -1.64 | B21: =Sheet1!$B$14*A21^8+Sheet1!$B$15*A21^7+Sheet1!$B$16*A21^6+Sheet1!$B$17*A21^5+Sheet1!$B$18*A21^4+Sheet1!$B$19*A21^3+Sheet1!$B$20*A21^2+Sheet1!$B$21*A21+Sheet1!$B$22 -> 279.0039565 | C21: 52.33000598
A22: -1.62 | B22: =Sheet1!$B$14*A22^8+Sheet1!$B$15*A22^7+Sheet1!$B$16*A22^6+Sheet1!$B$17*A22^5+Sheet1!$B$18*A22^4+Sheet1!$B$19*A22^3+Sheet1!$B$20*A22^2+Sheet1!$B$21*A22+Sheet1!$B$22 -> 259.5397551 | C22: 47.43731683
A23: -1.6 | B23: =Sheet1!$B$14*A23^8+Sheet1!$B$15*A23^7+Sheet1!$B$16*A23^6+Sheet1!$B$17*A23^5+Sheet1!$B$18*A23^4+Sheet1!$B$19*A23^3+Sheet1!$B$20*A23^2+Sheet1!$B$21*A23+Sheet1!$B$22 -> 241.2694426 | C23: 42.94967296
A24: -1.58 | B24: =Sheet1!$B$14*A24^8+Sheet1!$B$15*A24^7+Sheet1!$B$16*A24^6+Sheet1!$B$17*A24^5+Sheet1!$B$18*A24^4+Sheet1!$B$19*A24^3+Sheet1!$B$20*A24^2+Sheet1!$B$21*A24+Sheet1!$B$22 -> 224.1278834 | C24: 38.83798553
A25: -1.56 | B25: =Sheet1!$B$14*A25^8+Sheet1!$B$15*A25^7+Sheet1!$B$16*A25^6+Sheet1!$B$17*A25^5+Sheet1!$B$18*A25^4+Sheet1!$B$19*A25^3+Sheet1!$B$20*A25^2+Sheet1!$B$21*A25+Sheet1!$B$22 -> 208.0530405 | C25: 35.07492789
A26: -1.54 | B26: =Sheet1!$B$14*A26^8+Sheet1!$B$15*A26^7+Sheet1!$B$16*A26^6+Sheet1!$B$17*A26^5+Sheet1!$B$18*A26^4+Sheet1!$B$19*A26^3+Sheet1!$B$20*A26^2+Sheet1!$B$21*A26+Sheet1!$B$22 -> 192.9858516 | C26: 31.63484906
A27: -1.52 | B27: =Sheet1!$B$14*A27^8+Sheet1!$B$15*A27^7+Sheet1!$B$16*A27^6+Sheet1!$B$17*A27^5+Sheet1!$B$18*A27^4+Sheet1!$B$19*A27^3+Sheet1!$B$20*A27^2+Sheet1!$B$21*A27+Sheet1!$B$22 -> 178.870109 | C27: 28.49369056
A28: -1.5 | B28: =Sheet1!$B$14*A28^8+Sheet1!$B$15*A28^7+Sheet1!$B$16*A28^6+Sheet1!$B$17*A28^5+Sheet1!$B$18*A28^4+Sheet1!$B$19*A28^3+Sheet1!$B$20*A28^2+Sheet1!$B$21*A28+Sheet1!$B$22 -> 165.6523437 | C28: 25.62890625
A29: -1.48 | B29: =Sheet1!$B$14*A29^8+Sheet1!$B$15*A29^7+Sheet1!$B$16*A29^6+Sheet1!$B$17*A29^5+Sheet1!$B$18*A29^4+Sheet1!$B$19*A29^3+Sheet1!$B$20*A29^2+Sheet1!$B$21*A29+Sheet1!$B$22 -> 153.2817132 | C29: 23.01938535
A30: -1.46 | B30: =Sheet1!$B$14*A30^8+Sheet1!$B$15*A30^7+Sheet1!$B$16*A30^6+Sheet1!$B$17*A30^5+Sheet1!$B$18*A30^4+Sheet1!$B$19*A30^3+Sheet1!$B$20*A30^2+Sheet1!$B$21*A30+Sheet1!$B$22 -> 141.7098927 | C30: 20.64537835
A31: -1.44 | B31: =Sheet1!$B$14*A31^8+Sheet1!$B$15*A31^7+Sheet1!$B$16*A31^6+Sheet1!$B$17*A31^5+Sheet1!$B$18*A31^4+Sheet1!$B$19*A31^3+Sheet1!$B$20*A31^2+Sheet1!$B$21*A31+Sheet1!$B$22 -> 130.8909697 | C31: 18.48842589
A32: -1.42 | B32: =Sheet1!$B$14*A32^8+Sheet1!$B$15*A32^7+Sheet1!$B$16*A32^6+Sheet1!$B$17*A32^5+Sheet1!$B$18*A32^4+Sheet1!$B$19*A32^3+Sheet1!$B$20*A32^2+Sheet1!$B$21*A32+Sheet1!$B$22 -> 120.7813433 | C32: 16.5312904
A33: -1.4 | B33: =Sheet1!$B$14*A33^8+Sheet1!$B$15*A33^7+Sheet1!$B$16*A33^6+Sheet1!$B$17*A33^5+Sheet1!$B$18*A33^4+Sheet1!$B$19*A33^3+Sheet1!$B$20*A33^2+Sheet1!$B$21*A33+Sheet1!$B$22 -> 111.339625 | C33: 14.75789056
A34: -1.38 | B34: =Sheet1!$B$14*A34^8+Sheet1!$B$15*A34^7+Sheet1!$B$16*A34^6+Sheet1!$B$17*A34^5+Sheet1!$B$18*A34^4+Sheet1!$B$19*A34^3+Sheet1!$B$20*A34^2+Sheet1!$B$21*A34+Sheet1!$B$22 -> 102.5265443 | C34: 13.15323839
A35: -1.36 | B35: =Sheet1!$B$14*A35^8+Sheet1!$B$15*A35^7+Sheet1!$B$16*A35^6+Sheet1!$B$17*A35^5+Sheet1!$B$18*A35^4+Sheet1!$B$19*A35^3+Sheet1!$B$20*A35^2+Sheet1!$B$21*A35+Sheet1!$B$22 -> 94.30485716 | C35: 11.70337894
A36: -1.34 | B36: =Sheet1!$B$14*A36^8+Sheet1!$B$15*A36^7+Sheet1!$B$16*A36^6+Sheet1!$B$17*A36^5+Sheet1!$B$18*A36^4+Sheet1!$B$19*A36^3+Sheet1!$B$20*A36^2+Sheet1!$B$21*A36+Sheet1!$B$22 -> 86.63925737 | C36: 10.39533255
A37: -1.32 | B37: =Sheet1!$B$14*A37^8+Sheet1!$B$15*A37^7+Sheet1!$B$16*A37^6+Sheet1!$B$17*A37^5+Sheet1!$B$18*A37^4+Sheet1!$B$19*A37^3+Sheet1!$B$20*A37^2+Sheet1!$B$21*A37+Sheet1!$B$22 -> 79.49629116 | C37: 9.217039521
A38: -1.3 | B38: =Sheet1!$B$14*A38^8+Sheet1!$B$15*A38^7+Sheet1!$B$16*A38^6+Sheet1!$B$17*A38^5+Sheet1!$B$18*A38^4+Sheet1!$B$19*A38^3+Sheet1!$B$20*A38^2+Sheet1!$B$21*A38+Sheet1!$B$22 -> 72.84427491 | C38: 8.15730721
A39: -1.28 | B39: =Sheet1!$B$14*A39^8+Sheet1!$B$15*A39^7+Sheet1!$B$16*A39^6+Sheet1!$B$17*A39^5+Sheet1!$B$18*A39^4+Sheet1!$B$19*A39^3+Sheet1!$B$20*A39^2+Sheet1!$B$21*A39+Sheet1!$B$22 -> 66.65321568 | C39: 7.205759404
A40: -1.26 | B40: =Sheet1!$B$14*A40^8+Sheet1!$B$15*A40^7+Sheet1!$B$16*A40^6+Sheet1!$B$17*A40^5+Sheet1!$B$18*A40^4+Sheet1!$B$19*A40^3+Sheet1!$B$20*A40^2+Sheet1!$B$21*A40+Sheet1!$B$22 -> 60.89473466 | C40: 6.352787975
A41: -1.24 | B41: =Sheet1!$B$14*A41^8+Sheet1!$B$15*A41^7+Sheet1!$B$16*A41^6+Sheet1!$B$17*A41^5+Sheet1!$B$18*A41^4+Sheet1!$B$19*A41^3+Sheet1!$B$20*A41^2+Sheet1!$B$21*A41+Sheet1!$B$22 -> 55.54199336 | C41: 5.589506703
A42: -1.22 | B42: =Sheet1!$B$14*A42^8+Sheet1!$B$15*A42^7+Sheet1!$B$16*A42^6+Sheet1!$B$17*A42^5+Sheet1!$B$18*A42^4+Sheet1!$B$19*A42^3+Sheet1!$B$20*A42^2+Sheet1!$B$21*A42+Sheet1!$B$22 -> 50.56962254 | C42: 4.907707213
A43: -1.2 | B43: =Sheet1!$B$14*A43^8+Sheet1!$B$15*A43^7+Sheet1!$B$16*A43^6+Sheet1!$B$17*A43^5+Sheet1!$B$18*A43^4+Sheet1!$B$19*A43^3+Sheet1!$B$20*A43^2+Sheet1!$B$21*A43+Sheet1!$B$22 -> 45.95365376 | C43: 4.29981696
A44: -1.18 | B44: =Sheet1!$B$14*A44^8+Sheet1!$B$15*A44^7+Sheet1!$B$16*A44^6+Sheet1!$B$17*A44^5+Sheet1!$B$18*A44^4+Sheet1!$B$19*A44^3+Sheet1!$B$20*A44^2+Sheet1!$B$21*A44+Sheet1!$B$22 -> 41.67145354 | C44: 3.758859203
A45: -1.16 | B45: =Sheet1!$B$14*A45^8+Sheet1!$B$15*A45^7+Sheet1!$B$16*A45^6+Sheet1!$B$17*A45^5+Sheet1!$B$18*A45^4+Sheet1!$B$19*A45^3+Sheet1!$B$20*A45^2+Sheet1!$B$21*A45+Sheet1!$B$22 -> 37.70165994 | C45: 3.278414892
A46: -1.14 | B46: =Sheet1!$B$14*A46^8+Sheet1!$B$15*A46^7+Sheet1!$B$16*A46^6+Sheet1!$B$17*A46^5+Sheet1!$B$18*A46^4+Sheet1!$B$19*A46^3+Sheet1!$B$20*A46^2+Sheet1!$B$21*A46+Sheet1!$B$22 -> 34.02412168 | C46: 2.852586422
A47: -1.12 | B47: =Sheet1!$B$14*A47^8+Sheet1!$B$15*A47^7+Sheet1!$B$16*A47^6+Sheet1!$B$17*A47^5+Sheet1!$B$18*A47^4+Sheet1!$B$19*A47^3+Sheet1!$B$20*A47^2+Sheet1!$B$21*A47+Sheet1!$B$22 -> 30.6198395 | C47: 2.475963176
A48: -1.1 | B48: =Sheet1!$B$14*A48^8+Sheet1!$B$15*A48^7+Sheet1!$B$16*A48^6+Sheet1!$B$17*A48^5+Sheet1!$B$18*A48^4+Sheet1!$B$19*A48^3+Sheet1!$B$20*A48^2+Sheet1!$B$21*A48+Sheet1!$B$22 -> 27.47090991 | C48: 2.14358881
A49: -1.08 | B49: =Sheet1!$B$14*A49^8+Sheet1!$B$15*A49^7+Sheet1!$B$16*A49^6+Sheet1!$B$17*A49^5+Sheet1!$B$18*A49^4+Sheet1!$B$19*A49^3+Sheet1!$B$20*A49^2+Sheet1!$B$21*A49+Sheet1!$B$22 -> 24.56047111 | C49: 1.85093021
A50: -1.06 | B50: =Sheet1!$B$14*A50^8+Sheet1!$B$15*A50^7+Sheet1!$B$16*A50^6+Sheet1!$B$17*A50^5+Sheet1!$B$18*A50^4+Sheet1!$B$19*A50^3+Sheet1!$B$20*A50^2+Sheet1!$B$21*A50+Sheet1!$B$22 -> 21.87265113 | C50: 1.593848075
A51: -1.04 | B51: =Sheet1!$B$14*A51^8+Sheet1!$B$15*A51^7+Sheet1!$B$16*A51^6+Sheet1!$B$17*A51^5+Sheet1!$B$18*A51^4+Sheet1!$B$19*A51^3+Sheet1!$B$20*A51^2+Sheet1!$B$21*A51+Sheet1!$B$22 -> 19.392518 | C51: 1.36856905
A52: -1.02 | B52: =Sheet1!$B$14*A52^8+Sheet1!$B$15*A52^7+Sheet1!$B$16*A52^6+Sheet1!$B$17*A52^5+Sheet1!$B$18*A52^4+Sheet1!$B$19*A52^3+Sheet1!$B$20*A52^2+Sheet1!$B$21*A52+Sheet1!$B$22 -> 17.10603202 | C52: 1.171659381
A53: -1 | B53: =Sheet1!$B$14*A53^8+Sheet1!$B$15*A53^7+Sheet1!$B$16*A53^6+Sheet1!$B$17*A53^5+Sheet1!$B$18*A53^4+Sheet1!$B$19*A53^3+Sheet1!$B$20*A53^2+Sheet1!$B$21*A53+Sheet1!$B$22 -> 15 | C53: 1
A54: -0.98 | B54: =Sheet1!$B$14*A54^8+Sheet1!$B$15*A54^7+Sheet1!$B$16*A54^6+Sheet1!$B$17*A54^5+Sheet1!$B$18*A54^4+Sheet1!$B$19*A54^3+Sheet1!$B$20*A54^2+Sheet1!$B$21*A54+Sheet1!$B$22 -> 13.06203134 | C54: 0.8507630226
A55: -0.96 | B55: =Sheet1!$B$14*A55^8+Sheet1!$B$15*A55^7+Sheet1!$B$16*A55^6+Sheet1!$B$17*A55^5+Sheet1!$B$18*A55^4+Sheet1!$B$19*A55^3+Sheet1!$B$20*A55^2+Sheet1!$B$21*A55+Sheet1!$B$22 -> 11.28049608 | C55: 0.721389579
A56: -0.94 | B56: =Sheet1!$B$14*A56^8+Sheet1!$B$15*A56^7+Sheet1!$B$16*A56^6+Sheet1!$B$17*A56^5+Sheet1!$B$18*A56^4+Sheet1!$B$19*A56^3+Sheet1!$B$20*A56^2+Sheet1!$B$21*A56+Sheet1!$B$22 -> 9.644484671 | C56: 0.6095689385
A57: -0.92 | B57: =Sheet1!$B$14*A57^8+Sheet1!$B$15*A57^7+Sheet1!$B$16*A57^6+Sheet1!$B$17*A57^5+Sheet1!$B$18*A57^4+Sheet1!$B$19*A57^3+Sheet1!$B$20*A57^2+Sheet1!$B$21*A57+Sheet1!$B$22 -> 8.143769499 | C57: 0.5132188731
A58: -0.9 | B58: =Sheet1!$B$14*A58^8+Sheet1!$B$15*A58^7+Sheet1!$B$16*A58^6+Sheet1!$B$17*A58^5+Sheet1!$B$18*A58^4+Sheet1!$B$19*A58^3+Sheet1!$B$20*A58^2+Sheet1!$B$21*A58+Sheet1!$B$22 -> 6.76876811 | C58: 0.43046721
A59: -0.88 | B59: =Sheet1!$B$14*A59^8+Sheet1!$B$15*A59^7+Sheet1!$B$16*A59^6+Sheet1!$B$17*A59^5+Sheet1!$B$18*A59^4+Sheet1!$B$19*A59^3+Sheet1!$B$20*A59^2+Sheet1!$B$21*A59+Sheet1!$B$22 -> 5.510508049 | C59: 0.3596345248
A60: -0.86 | B60: =Sheet1!$B$14*A60^8+Sheet1!$B$15*A60^7+Sheet1!$B$16*A60^6+Sheet1!$B$17*A60^5+Sheet1!$B$18*A60^4+Sheet1!$B$19*A60^3+Sheet1!$B$20*A60^2+Sheet1!$B$21*A60+Sheet1!$B$22 -> 4.360593275 | C60: 0.2992179271
A61: -0.84 | B61: =Sheet1!$B$14*A61^8+Sheet1!$B$15*A61^7+Sheet1!$B$16*A61^6+Sheet1!$B$17*A61^5+Sheet1!$B$18*A61^4+Sheet1!$B$19*A61^3+Sheet1!$B$20*A61^2+Sheet1!$B$21*A61+Sheet1!$B$22 -> 3.311172099 | C61: 0.2478758911
A62: -0.82 | B62: =Sheet1!$B$14*A62^8+Sheet1!$B$15*A62^7+Sheet1!$B$16*A62^6+Sheet1!$B$17*A62^5+Sheet1!$B$18*A62^4+Sheet1!$B$19*A62^3+Sheet1!$B$20*A62^2+Sheet1!$B$21*A62+Sheet1!$B$22 -> 2.354906581 | C62: 0.2044140859
A63: -0.8 | B63: =Sheet1!$B$14*A63^8+Sheet1!$B$15*A63^7+Sheet1!$B$16*A63^6+Sheet1!$B$17*A63^5+Sheet1!$B$18*A63^4+Sheet1!$B$19*A63^3+Sheet1!$B$20*A63^2+Sheet1!$B$21*A63+Sheet1!$B$22 -> 1.48494336 | C63: 0.16777216
A64: -0.78 | B64: =Sheet1!$B$14*A64^8+Sheet1!$B$15*A64^7+Sheet1!$B$16*A64^6+Sheet1!$B$17*A64^5+Sheet1!$B$18*A64^4+Sheet1!$B$19*A64^3+Sheet1!$B$20*A64^2+Sheet1!$B$21*A64+Sheet1!$B$22 -> 0.6948858292 | C64: 0.1370114371
A65: -0.76 | B65: =Sheet1!$B$14*A65^8+Sheet1!$B$15*A65^7+Sheet1!$B$16*A65^6+Sheet1!$B$17*A65^5+Sheet1!$B$18*A65^4+Sheet1!$B$19*A65^3+Sheet1!$B$20*A65^2+Sheet1!$B$21*A65+Sheet1!$B$22 -> -0.02123235563 | C65: 0.1113034787
A66: -0.74 | B66: =Sheet1!$B$14*A66^8+Sheet1!$B$15*A66^7+Sheet1!$B$16*A66^6+Sheet1!$B$17*A66^5+Sheet1!$B$18*A66^4+Sheet1!$B$19*A66^3+Sheet1!$B$20*A66^2+Sheet1!$B$21*A66+Sheet1!$B$22 -> -0.6689725081 | C66: 0.08991947402
A67: -0.72 | B67: =Sheet1!$B$14*A67^8+Sheet1!$B$15*A67^7+Sheet1!$B$16*A67^6+Sheet1!$B$17*A67^5+Sheet1!$B$18*A67^4+Sheet1!$B$19*A67^3+Sheet1!$B$20*A67^2+Sheet1!$B$21*A67+Sheet1!$B$22 -> -1.253514919 | C67: =cc*A67^p -> 0.07222041363
A68: =A67+dx -> -0.7 | B68: =Sheet1!$B$14*A68^8+Sheet1!$B$15*A68^7+Sheet1!$B$16*A68^6+Sheet1!$B$17*A68^5+Sheet1!$B$18*A68^4+Sheet1!$B$19*A68^3+Sheet1!$B$20*A68^2+Sheet1!$B$21*A68+Sheet1!$B$22 -> -1.77968169 | C68: 0.05764801
A69: -0.68 | B69: =Sheet1!$B$14*A69^8+Sheet1!$B$15*A69^7+Sheet1!$B$16*A69^6+Sheet1!$B$17*A69^5+Sheet1!$B$18*A69^4+Sheet1!$B$19*A69^3+Sheet1!$B$20*A69^2+Sheet1!$B$21*A69+Sheet1!$B$22 -> -2.251958437 | C69: 0.04571632397
A70: -0.66 | B70: =Sheet1!$B$14*A70^8+Sheet1!$B$15*A70^7+Sheet1!$B$16*A70^6+Sheet1!$B$17*A70^5+Sheet1!$B$18*A70^4+Sheet1!$B$19*A70^3+Sheet1!$B$20*A70^2+Sheet1!$B$21*A70+Sheet1!$B$22 -> -2.674514907 | C70: 0.03600406063
A71: -0.64 | B71: =Sheet1!$B$14*A71^8+Sheet1!$B$15*A71^7+Sheet1!$B$16*A71^6+Sheet1!$B$17*A71^5+Sheet1!$B$18*A71^4+Sheet1!$B$19*A71^3+Sheet1!$B$20*A71^2+Sheet1!$B$21*A71+Sheet1!$B$22 -> -3.051224556 | C71: 0.02814749767
A72: -0.62 | B72: =Sheet1!$B$14*A72^8+Sheet1!$B$15*A72^7+Sheet1!$B$16*A72^6+Sheet1!$B$17*A72^5+Sheet1!$B$18*A72^4+Sheet1!$B$19*A72^3+Sheet1!$B$20*A72^2+Sheet1!$B$21*A72+Sheet1!$B$22 -> -3.385683122 | C72: 0.02183401056
A73: -0.6 | B73: =Sheet1!$B$14*A73^8+Sheet1!$B$15*A73^7+Sheet1!$B$16*A73^6+Sheet1!$B$17*A73^5+Sheet1!$B$18*A73^4+Sheet1!$B$19*A73^3+Sheet1!$B$20*A73^2+Sheet1!$B$21*A73+Sheet1!$B$22 -> -3.68122624 | C73: 0.01679616
A74: -0.58 | B74: =Sheet1!$B$14*A74^8+Sheet1!$B$15*A74^7+Sheet1!$B$16*A74^6+Sheet1!$B$17*A74^5+Sheet1!$B$18*A74^4+Sheet1!$B$19*A74^3+Sheet1!$B$20*A74^2+Sheet1!$B$21*A74+Sheet1!$B$22 -> -3.940946139 | C74: 0.01280630817
A75: -0.56 | B75: =Sheet1!$B$14*A75^8+Sheet1!$B$15*A75^7+Sheet1!$B$16*A75^6+Sheet1!$B$17*A75^5+Sheet1!$B$18*A75^4+Sheet1!$B$19*A75^3+Sheet1!$B$20*A75^2+Sheet1!$B$21*A75+Sheet1!$B$22 -> -4.167707457 | C75: 0.009671731157
A76: -0.54 | B76: =Sheet1!$B$14*A76^8+Sheet1!$B$15*A76^7+Sheet1!$B$16*A76^6+Sheet1!$B$17*A76^5+Sheet1!$B$18*A76^4+Sheet1!$B$19*A76^3+Sheet1!$B$20*A76^2+Sheet1!$B$21*A76+Sheet1!$B$22 -> -4.364162212 | C76: 0.007230196134
A77: -0.52 | B77: =Sheet1!$B$14*A77^8+Sheet1!$B$15*A77^7+Sheet1!$B$16*A77^6+Sheet1!$B$17*A77^5+Sheet1!$B$18*A77^4+Sheet1!$B$19*A77^3+Sheet1!$B$20*A77^2+Sheet1!$B$21*A77+Sheet1!$B$22 -> -4.532763972 | C77: 0.005345972853
A78: -0.5 | B78: =Sheet1!$B$14*A78^8+Sheet1!$B$15*A78^7+Sheet1!$B$16*A78^6+Sheet1!$B$17*A78^5+Sheet1!$B$18*A78^4+Sheet1!$B$19*A78^3+Sheet1!$B$20*A78^2+Sheet1!$B$21*A78+Sheet1!$B$22 -> -4.67578125 | C78: 0.00390625
A79: -0.48 | B79: =Sheet1!$B$14*A79^8+Sheet1!$B$15*A79^7+Sheet1!$B$16*A79^6+Sheet1!$B$17*A79^5+Sheet1!$B$18*A79^4+Sheet1!$B$19*A79^3+Sheet1!$B$20*A79^2+Sheet1!$B$21*A79+Sheet1!$B$22 -> -4.795310166 | C79: 0.002817928043
A80: -0.46 | B80: =Sheet1!$B$14*A80^8+Sheet1!$B$15*A80^7+Sheet1!$B$16*A80^6+Sheet1!$B$17*A80^5+Sheet1!$B$18*A80^4+Sheet1!$B$19*A80^3+Sheet1!$B$20*A80^2+Sheet1!$B$21*A80+Sheet1!$B$22 -> -4.893286409 | C80: 0.002004761223
A81: -0.44 | B81: =Sheet1!$B$14*A81^8+Sheet1!$B$15*A81^7+Sheet1!$B$16*A81^6+Sheet1!$B$17*A81^5+Sheet1!$B$18*A81^4+Sheet1!$B$19*A81^3+Sheet1!$B$20*A81^2+Sheet1!$B$21*A81+Sheet1!$B$22 -> -4.97149653 | C81: 0.001404822363
A82: -0.42 | B82: =Sheet1!$B$14*A82^8+Sheet1!$B$15*A82^7+Sheet1!$B$16*A82^6+Sheet1!$B$17*A82^5+Sheet1!$B$18*A82^4+Sheet1!$B$19*A82^3+Sheet1!$B$20*A82^2+Sheet1!$B$21*A82+Sheet1!$B$22 -> -5.031588595 | C82: 0.0009682651996
A83: -0.4 | B83: =Sheet1!$B$14*A83^8+Sheet1!$B$15*A83^7+Sheet1!$B$16*A83^6+Sheet1!$B$17*A83^5+Sheet1!$B$18*A83^4+Sheet1!$B$19*A83^3+Sheet1!$B$20*A83^2+Sheet1!$B$21*A83+Sheet1!$B$22 -> -5.07508224 | C83: 0.00065536
A84: -0.38 | B84: =Sheet1!$B$14*A84^8+Sheet1!$B$15*A84^7+Sheet1!$B$16*A84^6+Sheet1!$B$17*A84^5+Sheet1!$B$18*A84^4+Sheet1!$B$19*A84^3+Sheet1!$B$20*A84^2+Sheet1!$B$21*A84+Sheet1!$B$22 -> -5.103378139 | C84: 0.0004347792138
A85: -0.36 | B85: =Sheet1!$B$14*A85^8+Sheet1!$B$15*A85^7+Sheet1!$B$16*A85^6+Sheet1!$B$17*A85^5+Sheet1!$B$18*A85^4+Sheet1!$B$19*A85^3+Sheet1!$B$20*A85^2+Sheet1!$B$21*A85+Sheet1!$B$22 -> -5.117766932 | C85: 0.0002821109907
A86: -0.34 | B86: =Sheet1!$B$14*A86^8+Sheet1!$B$15*A86^7+Sheet1!$B$16*A86^6+Sheet1!$B$17*A86^5+Sheet1!$B$18*A86^4+Sheet1!$B$19*A86^3+Sheet1!$B$20*A86^2+Sheet1!$B$21*A86+Sheet1!$B$22 -> -5.119437635 | C86: 0.0001785793905
A87: -0.32 | B87: =Sheet1!$B$14*A87^8+Sheet1!$B$15*A87^7+Sheet1!$B$16*A87^6+Sheet1!$B$17*A87^5+Sheet1!$B$18*A87^4+Sheet1!$B$19*A87^3+Sheet1!$B$20*A87^2+Sheet1!$B$21*A87+Sheet1!$B$22 -> -5.109485545 | C87: 0.0001099511628
A88: -0.3 | B88: =Sheet1!$B$14*A88^8+Sheet1!$B$15*A88^7+Sheet1!$B$16*A88^6+Sheet1!$B$17*A88^5+Sheet1!$B$18*A88^4+Sheet1!$B$19*A88^3+Sheet1!$B$20*A88^2+Sheet1!$B$21*A88+Sheet1!$B$22 -> -5.08891969 | C88: 6.561e-05
A89: -0.28 | B89: =Sheet1!$B$14*A89^8+Sheet1!$B$15*A89^7+Sheet1!$B$16*A89^6+Sheet1!$B$17*A89^5+Sheet1!$B$18*A89^4+Sheet1!$B$19*A89^3+Sheet1!$B$20*A89^2+Sheet1!$B$21*A89+Sheet1!$B$22 -> -5.058669828 | C89: 3.778019983e-05
A90: -0.26 | B90: =Sheet1!$B$14*A90^8+Sheet1!$B$15*A90^7+Sheet1!$B$16*A90^6+Sheet1!$B$17*A90^5+Sheet1!$B$18*A90^4+Sheet1!$B$19*A90^3+Sheet1!$B$20*A90^2+Sheet1!$B$21*A90+Sheet1!$B$22 -> -5.01959303 | C90: 2.088270646e-05
A91: -0.24 | B91: =Sheet1!$B$14*A91^8+Sheet1!$B$15*A91^7+Sheet1!$B$16*A91^6+Sheet1!$B$17*A91^5+Sheet1!$B$18*A91^4+Sheet1!$B$19*A91^3+Sheet1!$B$20*A91^2+Sheet1!$B$21*A91+Sheet1!$B$22 -> -4.972479861 | C91: 1.100753142e-05
A92: -0.22 | B92: =Sheet1!$B$14*A92^8+Sheet1!$B$15*A92^7+Sheet1!$B$16*A92^6+Sheet1!$B$17*A92^5+Sheet1!$B$18*A92^4+Sheet1!$B$19*A92^3+Sheet1!$B$20*A92^2+Sheet1!$B$21*A92+Sheet1!$B$22 -> -4.91806019 | C92: 5.487587354e-06
A93: -0.2 | B93: =Sheet1!$B$14*A93^8+Sheet1!$B$15*A93^7+Sheet1!$B$16*A93^6+Sheet1!$B$17*A93^5+Sheet1!$B$18*A93^4+Sheet1!$B$19*A93^3+Sheet1!$B$20*A93^2+Sheet1!$B$21*A93+Sheet1!$B$22 -> -4.85700864 | C93: 2.56e-06
A94: -0.18 | B94: =Sheet1!$B$14*A94^8+Sheet1!$B$15*A94^7+Sheet1!$B$16*A94^6+Sheet1!$B$17*A94^5+Sheet1!$B$18*A94^4+Sheet1!$B$19*A94^3+Sheet1!$B$20*A94^2+Sheet1!$B$21*A94+Sheet1!$B$22 -> -4.789949706 | C94: 1.101996058e-06
A95: -0.16 | B95: =Sheet1!$B$14*A95^8+Sheet1!$B$15*A95^7+Sheet1!$B$16*A95^6+Sheet1!$B$17*A95^5+Sheet1!$B$18*A95^4+Sheet1!$B$19*A95^3+Sheet1!$B$20*A95^2+Sheet1!$B$21*A95+Sheet1!$B$22 -> -4.717462552 | C95: 4.294967296e-07
A96: -0.14 | B96: =Sheet1!$B$14*A96^8+Sheet1!$B$15*A96^7+Sheet1!$B$16*A96^6+Sheet1!$B$17*A96^5+Sheet1!$B$18*A96^4+Sheet1!$B$19*A96^3+Sheet1!$B$20*A96^2+Sheet1!$B$21*A96+Sheet1!$B$22 -> -4.640085506 | C96: 1.475789056e-07
A97: -0.12 | B97: =Sheet1!$B$14*A97^8+Sheet1!$B$15*A97^7+Sheet1!$B$16*A97^6+Sheet1!$B$17*A97^5+Sheet1!$B$18*A97^4+Sheet1!$B$19*A97^3+Sheet1!$B$20*A97^2+Sheet1!$B$21*A97+Sheet1!$B$22 -> -4.558320276 | C97: 4.29981696e-08
A98: -0.1 | B98: =Sheet1!$B$14*A98^8+Sheet1!$B$15*A98^7+Sheet1!$B$16*A98^6+Sheet1!$B$17*A98^5+Sheet1!$B$18*A98^4+Sheet1!$B$19*A98^3+Sheet1!$B$20*A98^2+Sheet1!$B$21*A98+Sheet1!$B$22 -> -4.47263589 | C98: 1e-08
A99: -0.08 | B99: =Sheet1!$B$14*A99^8+Sheet1!$B$15*A99^7+Sheet1!$B$16*A99^6+Sheet1!$B$17*A99^5+Sheet1!$B$18*A99^4+Sheet1!$B$19*A99^3+Sheet1!$B$20*A99^2+Sheet1!$B$21*A99+Sheet1!$B$22 -> -4.383472388 | C99: 1.6777216e-09
A100: -0.06 | B100: =Sheet1!$B$14*A100^8+Sheet1!$B$15*A100^7+Sheet1!$B$16*A100^6+Sheet1!$B$17*A100^5+Sheet1!$B$18*A100^4+Sheet1!$B$19*A100^3+Sheet1!$B$20*A100^2+Sheet1!$B$21*A100+Sheet1!$B$22 -> -4.291244265 | C100: 1.679616e-10
A101: -0.04 | B101: =Sheet1!$B$14*A101^8+Sheet1!$B$15*A101^7+Sheet1!$B$16*A101^6+Sheet1!$B$17*A101^5+Sheet1!$B$18*A101^4+Sheet1!$B$19*A101^3+Sheet1!$B$20*A101^2+Sheet1!$B$21*A101+Sheet1!$B$22 -> -4.196343689 | C101: 6.5536e-12
A102: -0.02 | B102: =Sheet1!$B$14*A102^8+Sheet1!$B$15*A102^7+Sheet1!$B$16*A102^6+Sheet1!$B$17*A102^5+Sheet1!$B$18*A102^4+Sheet1!$B$19*A102^3+Sheet1!$B$20*A102^2+Sheet1!$B$21*A102+Sheet1!$B$22 -> -4.099143501 | C102: 2.56e-14
A103: 1.505739977e-15 | B103: =Sheet1!$B$14*A103^8+Sheet1!$B$15*A103^7+Sheet1!$B$16*A103^6+Sheet1!$B$17*A103^5+Sheet1!$B$18*A103^4+Sheet1!$B$19*A103^3+Sheet1!$B$20*A103^2+Sheet1!$B$21*A103+Sheet1!$B$22 -> -4 | C103: 2.642407833e-119
A104: 0.02 | B104: =Sheet1!$B$14*A104^8+Sheet1!$B$15*A104^7+Sheet1!$B$16*A104^6+Sheet1!$B$17*A104^5+Sheet1!$B$18*A104^4+Sheet1!$B$19*A104^3+Sheet1!$B$20*A104^2+Sheet1!$B$21*A104+Sheet1!$B$22 -> -3.899255539 | C104: 2.56e-14
A105: 0.04 | B105: =Sheet1!$B$14*A105^8+Sheet1!$B$15*A105^7+Sheet1!$B$16*A105^6+Sheet1!$B$17*A105^5+Sheet1!$B$18*A105^4+Sheet1!$B$19*A105^3+Sheet1!$B$20*A105^2+Sheet1!$B$21*A105+Sheet1!$B$22 -> -3.797240918 | C105: 6.5536e-12
A106: 0.06 | B106: =Sheet1!$B$14*A106^8+Sheet1!$B$15*A106^7+Sheet1!$B$16*A106^6+Sheet1!$B$17*A106^5+Sheet1!$B$18*A106^4+Sheet1!$B$19*A106^3+Sheet1!$B$20*A106^2+Sheet1!$B$21*A106+Sheet1!$B$22 -> -3.694277602 | C106: 1.679616e-10
A107: 0.08 | B107: =Sheet1!$B$14*A107^8+Sheet1!$B$15*A107^7+Sheet1!$B$16*A107^6+Sheet1!$B$17*A107^5+Sheet1!$B$18*A107^4+Sheet1!$B$19*A107^3+Sheet1!$B$20*A107^2+Sheet1!$B$21*A107+Sheet1!$B$22 -> -3.590679752 | C107: 1.6777216e-09
A108: 0.1 | B108: =Sheet1!$B$14*A108^8+Sheet1!$B$15*A108^7+Sheet1!$B$16*A108^6+Sheet1!$B$17*A108^5+Sheet1!$B$18*A108^4+Sheet1!$B$19*A108^3+Sheet1!$B$20*A108^2+Sheet1!$B$21*A108+Sheet1!$B$22 -> -3.48675609 | C108: 1e-08
A109: 0.12 | B109: =Sheet1!$B$14*A109^8+Sheet1!$B$15*A109^7+Sheet1!$B$16*A109^6+Sheet1!$B$17*A109^5+Sheet1!$B$18*A109^4+Sheet1!$B$19*A109^3+Sheet1!$B$20*A109^2+Sheet1!$B$21*A109+Sheet1!$B$22 -> -3.382811591 | C109: 4.29981696e-08
A110: 0.14 | B110: =Sheet1!$B$14*A110^8+Sheet1!$B$15*A110^7+Sheet1!$B$16*A110^6+Sheet1!$B$17*A110^5+Sheet1!$B$18*A110^4+Sheet1!$B$19*A110^3+Sheet1!$B$20*A110^2+Sheet1!$B$21*A110+Sheet1!$B$22 -> -3.279149003 | C110: 1.475789056e-07
A111: 0.16 | B111: =Sheet1!$B$14*A111^8+Sheet1!$B$15*A111^7+Sheet1!$B$16*A111^6+Sheet1!$B$17*A111^5+Sheet1!$B$18*A111^4+Sheet1!$B$19*A111^3+Sheet1!$B$20*A111^2+Sheet1!$B$21*A111+Sheet1!$B$22 -> -3.176070212 | C111: 4.294967296e-07
A112: 0.18 | B112: =Sheet1!$B$14*A112^8+Sheet1!$B$15*A112^7+Sheet1!$B$16*A112^6+Sheet1!$B$17*A112^5+Sheet1!$B$18*A112^4+Sheet1!$B$19*A112^3+Sheet1!$B$20*A112^2+Sheet1!$B$21*A112+Sheet1!$B$22 -> -3.073877432 | C112: 1.101996058e-06
A113: 0.2 | B113: =Sheet1!$B$14*A113^8+Sheet1!$B$15*A113^7+Sheet1!$B$16*A113^6+Sheet1!$B$17*A113^5+Sheet1!$B$18*A113^4+Sheet1!$B$19*A113^3+Sheet1!$B$20*A113^2+Sheet1!$B$21*A113+Sheet1!$B$22 -> -2.97287424 | C113: 2.56e-06
A114: 0.22 | B114: =Sheet1!$B$14*A114^8+Sheet1!$B$15*A114^7+Sheet1!$B$16*A114^6+Sheet1!$B$17*A114^5+Sheet1!$B$18*A114^4+Sheet1!$B$19*A114^3+Sheet1!$B$20*A114^2+Sheet1!$B$21*A114+Sheet1!$B$22 -> -2.873366436 | C114: 5.487587354e-06
A115: 0.24 | B115: =Sheet1!$B$14*A115^8+Sheet1!$B$15*A115^7+Sheet1!$B$16*A115^6+Sheet1!$B$17*A115^5+Sheet1!$B$18*A115^4+Sheet1!$B$19*A115^3+Sheet1!$B$20*A115^2+Sheet1!$B$21*A115+Sheet1!$B$22 -> -2.77566274 | C115: 1.100753142e-05
A116: 0.26 | B116: =Sheet1!$B$14*A116^8+Sheet1!$B$15*A116^7+Sheet1!$B$16*A116^6+Sheet1!$B$17*A116^5+Sheet1!$B$18*A116^4+Sheet1!$B$19*A116^3+Sheet1!$B$20*A116^2+Sheet1!$B$21*A116+Sheet1!$B$22 -> -2.680075318 | C116: 2.088270646e-05
A117: 0.28 | B117: =Sheet1!$B$14*A117^8+Sheet1!$B$15*A117^7+Sheet1!$B$16*A117^6+Sheet1!$B$17*A117^5+Sheet1!$B$18*A117^4+Sheet1!$B$19*A117^3+Sheet1!$B$20*A117^2+Sheet1!$B$21*A117+Sheet1!$B$22 -> -2.586920129 | C117: 3.778019983e-05
A118: 0.3 | B118: =Sheet1!$B$14*A118^8+Sheet1!$B$15*A118^7+Sheet1!$B$16*A118^6+Sheet1!$B$17*A118^5+Sheet1!$B$18*A118^4+Sheet1!$B$19*A118^3+Sheet1!$B$20*A118^2+Sheet1!$B$21*A118+Sheet1!$B$22 -> -2.49651709 | C118: 6.561e-05
A119: 0.32 | B119: =Sheet1!$B$14*A119^8+Sheet1!$B$15*A119^7+Sheet1!$B$16*A119^6+Sheet1!$B$17*A119^5+Sheet1!$B$18*A119^4+Sheet1!$B$19*A119^3+Sheet1!$B$20*A119^2+Sheet1!$B$21*A119+Sheet1!$B$22 -> -2.409190058 | C119: 0.0001099511628
A120: 0.34 | B120: =Sheet1!$B$14*A120^8+Sheet1!$B$15*A120^7+Sheet1!$B$16*A120^6+Sheet1!$B$17*A120^5+Sheet1!$B$18*A120^4+Sheet1!$B$19*A120^3+Sheet1!$B$20*A120^2+Sheet1!$B$21*A120+Sheet1!$B$22 -> -2.325266611 | C120: 0.0001785793905
A121: 0.36 | B121: =Sheet1!$B$14*A121^8+Sheet1!$B$15*A121^7+Sheet1!$B$16*A121^6+Sheet1!$B$17*A121^5+Sheet1!$B$18*A121^4+Sheet1!$B$19*A121^3+Sheet1!$B$20*A121^2+Sheet1!$B$21*A121+Sheet1!$B$22 -> -2.245077627 | C121: 0.0002821109907
A122: 0.38 | B122: =Sheet1!$B$14*A122^8+Sheet1!$B$15*A122^7+Sheet1!$B$16*A122^6+Sheet1!$B$17*A122^5+Sheet1!$B$18*A122^4+Sheet1!$B$19*A122^3+Sheet1!$B$20*A122^2+Sheet1!$B$21*A122+Sheet1!$B$22 -> -2.168956652 | C122: 0.0004347792138
A123: 0.4 | B123: =Sheet1!$B$14*A123^8+Sheet1!$B$15*A123^7+Sheet1!$B$16*A123^6+Sheet1!$B$17*A123^5+Sheet1!$B$18*A123^4+Sheet1!$B$19*A123^3+Sheet1!$B$20*A123^2+Sheet1!$B$21*A123+Sheet1!$B$22 -> -2.09723904 | C123: 0.00065536
A124: 0.42 | B124: =Sheet1!$B$14*A124^8+Sheet1!$B$15*A124^7+Sheet1!$B$16*A124^6+Sheet1!$B$17*A124^5+Sheet1!$B$18*A124^4+Sheet1!$B$19*A124^3+Sheet1!$B$20*A124^2+Sheet1!$B$21*A124+Sheet1!$B$22 -> -2.03026086 | C124: 0.0009682651996
A125: 0.44 | B125: =Sheet1!$B$14*A125^8+Sheet1!$B$15*A125^7+Sheet1!$B$16*A125^6+Sheet1!$B$17*A125^5+Sheet1!$B$18*A125^4+Sheet1!$B$19*A125^3+Sheet1!$B$20*A125^2+Sheet1!$B$21*A125+Sheet1!$B$22 -> -1.968357555 | C125: 0.001404822363
A126: 0.46 | B126: =Sheet1!$B$14*A126^8+Sheet1!$B$15*A126^7+Sheet1!$B$16*A126^6+Sheet1!$B$17*A126^5+Sheet1!$B$18*A126^4+Sheet1!$B$19*A126^3+Sheet1!$B$20*A126^2+Sheet1!$B$21*A126+Sheet1!$B$22 -> -1.911862333 | C126: 0.002004761223
A127: 0.48 | B127: =Sheet1!$B$14*A127^8+Sheet1!$B$15*A127^7+Sheet1!$B$16*A127^6+Sheet1!$B$17*A127^5+Sheet1!$B$18*A127^4+Sheet1!$B$19*A127^3+Sheet1!$B$20*A127^2+Sheet1!$B$21*A127+Sheet1!$B$22 -> -1.861104294 | C127: 0.002817928043
A128: 0.5 | B128: =Sheet1!$B$14*A128^8+Sheet1!$B$15*A128^7+Sheet1!$B$16*A128^6+Sheet1!$B$17*A128^5+Sheet1!$B$18*A128^4+Sheet1!$B$19*A128^3+Sheet1!$B$20*A128^2+Sheet1!$B$21*A128+Sheet1!$B$22 -> -1.81640625 | C128: 0.00390625
A129: 0.52 | B129: =Sheet1!$B$14*A129^8+Sheet1!$B$15*A129^7+Sheet1!$B$16*A129^6+Sheet1!$B$17*A129^5+Sheet1!$B$18*A129^4+Sheet1!$B$19*A129^3+Sheet1!$B$20*A129^2+Sheet1!$B$21*A129+Sheet1!$B$22 -> -1.778082245 | C129: 0.005345972853
A130: 0.54 | B130: =Sheet1!$B$14*A130^8+Sheet1!$B$15*A130^7+Sheet1!$B$16*A130^6+Sheet1!$B$17*A130^5+Sheet1!$B$18*A130^4+Sheet1!$B$19*A130^3+Sheet1!$B$20*A130^2+Sheet1!$B$21*A130+Sheet1!$B$22 -> -1.746434745 | C130: 0.007230196134
A131: 0.56 | B131: =Sheet1!$B$14*A131^8+Sheet1!$B$15*A131^7+Sheet1!$B$16*A131^6+Sheet1!$B$17*A131^5+Sheet1!$B$18*A131^4+Sheet1!$B$19*A131^3+Sheet1!$B$20*A131^2+Sheet1!$B$21*A131+Sheet1!$B$22 -> -1.721751485 | C131: =cc*A131^p -> 0.009671731157
A132: =A131+dx -> 0.58 | B132: =Sheet1!$B$14*A132^8+Sheet1!$B$15*A132^7+Sheet1!$B$16*A132^6+Sheet1!$B$17*A132^5+Sheet1!$B$18*A132^4+Sheet1!$B$19*A132^3+Sheet1!$B$20*A132^2+Sheet1!$B$21*A132+Sheet1!$B$22 -> -1.704301944 | C132: 0.01280630817
A133: 0.6 | B133: =Sheet1!$B$14*A133^8+Sheet1!$B$15*A133^7+Sheet1!$B$16*A133^6+Sheet1!$B$17*A133^5+Sheet1!$B$18*A133^4+Sheet1!$B$19*A133^3+Sheet1!$B$20*A133^2+Sheet1!$B$21*A133+Sheet1!$B$22 -> -1.69433344 | C133: 0.01679616
A134: 0.62 | B134: =Sheet1!$B$14*A134^8+Sheet1!$B$15*A134^7+Sheet1!$B$16*A134^6+Sheet1!$B$17*A134^5+Sheet1!$B$18*A134^4+Sheet1!$B$19*A134^3+Sheet1!$B$20*A134^2+Sheet1!$B$21*A134+Sheet1!$B$22 -> -1.692066812 | C134: 0.02183401056
A135: 0.64 | B135: =Sheet1!$B$14*A135^8+Sheet1!$B$15*A135^7+Sheet1!$B$16*A135^6+Sheet1!$B$17*A135^5+Sheet1!$B$18*A135^4+Sheet1!$B$19*A135^3+Sheet1!$B$20*A135^2+Sheet1!$B$21*A135+Sheet1!$B$22 -> -1.697691675 | C135: 0.02814749767
A136: 0.66 | B136: =Sheet1!$B$14*A136^8+Sheet1!$B$15*A136^7+Sheet1!$B$16*A136^6+Sheet1!$B$17*A136^5+Sheet1!$B$18*A136^4+Sheet1!$B$19*A136^3+Sheet1!$B$20*A136^2+Sheet1!$B$21*A136+Sheet1!$B$22 -> -1.711361212 | C136: 0.03600406063
A137: 0.68 | B137: =Sheet1!$B$14*A137^8+Sheet1!$B$15*A137^7+Sheet1!$B$16*A137^6+Sheet1!$B$17*A137^5+Sheet1!$B$18*A137^4+Sheet1!$B$19*A137^3+Sheet1!$B$20*A137^2+Sheet1!$B$21*A137+Sheet1!$B$22 -> -1.733186495 | C137: 0.04571632397
A138: 0.7 | B138: =Sheet1!$B$14*A138^8+Sheet1!$B$15*A138^7+Sheet1!$B$16*A138^6+Sheet1!$B$17*A138^5+Sheet1!$B$18*A138^4+Sheet1!$B$19*A138^3+Sheet1!$B$20*A138^2+Sheet1!$B$21*A138+Sheet1!$B$22 -> -1.76323029 | C138: 0.05764801
A139: 0.72 | B139: =Sheet1!$B$14*A139^8+Sheet1!$B$15*A139^7+Sheet1!$B$16*A139^6+Sheet1!$B$17*A139^5+Sheet1!$B$18*A139^4+Sheet1!$B$19*A139^3+Sheet1!$B$20*A139^2+Sheet1!$B$21*A139+Sheet1!$B$22 -> -1.801500338 | C139: 0.07222041363
A140: 0.74 | B140: =Sheet1!$B$14*A140^8+Sheet1!$B$15*A140^7+Sheet1!$B$16*A140^6+Sheet1!$B$17*A140^5+Sheet1!$B$18*A140^4+Sheet1!$B$19*A140^3+Sheet1!$B$20*A140^2+Sheet1!$B$21*A140+Sheet1!$B$22 -> -1.847942062 | C140: 0.08991947402
A141: 0.76 | B141: =Sheet1!$B$14*A141^8+Sheet1!$B$15*A141^7+Sheet1!$B$16*A141^6+Sheet1!$B$17*A141^5+Sheet1!$B$18*A141^4+Sheet1!$B$19*A141^3+Sheet1!$B$20*A141^2+Sheet1!$B$21*A141+Sheet1!$B$22 -> -1.902430698 | C141: 0.1113034787
A142: 0.78 | B142: =Sheet1!$B$14*A142^8+Sheet1!$B$15*A142^7+Sheet1!$B$16*A142^6+Sheet1!$B$17*A142^5+Sheet1!$B$18*A142^4+Sheet1!$B$19*A142^3+Sheet1!$B$20*A142^2+Sheet1!$B$21*A142+Sheet1!$B$22 -> -1.964762789 | C142: 0.1370114371
A143: 0.8 | B143: =Sheet1!$B$14*A143^8+Sheet1!$B$15*A143^7+Sheet1!$B$16*A143^6+Sheet1!$B$17*A143^5+Sheet1!$B$18*A143^4+Sheet1!$B$19*A143^3+Sheet1!$B$20*A143^2+Sheet1!$B$21*A143+Sheet1!$B$22 -> -2.03464704 | C143: 0.16777216
A144: 0.82 | B144: =Sheet1!$B$14*A144^8+Sheet1!$B$15*A144^7+Sheet1!$B$16*A144^6+Sheet1!$B$17*A144^5+Sheet1!$B$18*A144^4+Sheet1!$B$19*A144^3+Sheet1!$B$20*A144^2+Sheet1!$B$21*A144+Sheet1!$B$22 -> -2.111694478 | C144: 0.2044140859
A145: 0.84 | B145: =Sheet1!$B$14*A145^8+Sheet1!$B$15*A145^7+Sheet1!$B$16*A145^6+Sheet1!$B$17*A145^5+Sheet1!$B$18*A145^4+Sheet1!$B$19*A145^3+Sheet1!$B$20*A145^2+Sheet1!$B$21*A145+Sheet1!$B$22 -> -2.195407903 | C145: 0.2478758911
A146: 0.86 | B146: =Sheet1!$B$14*A146^8+Sheet1!$B$15*A146^7+Sheet1!$B$16*A146^6+Sheet1!$B$17*A146^5+Sheet1!$B$18*A146^4+Sheet1!$B$19*A146^3+Sheet1!$B$20*A146^2+Sheet1!$B$21*A146+Sheet1!$B$22 -> -2.28517058 | C146: 0.2992179271
A147: 0.88 | B147: =Sheet1!$B$14*A147^8+Sheet1!$B$15*A147^7+Sheet1!$B$16*A147^6+Sheet1!$B$17*A147^5+Sheet1!$B$18*A147^4+Sheet1!$B$19*A147^3+Sheet1!$B$20*A147^2+Sheet1!$B$21*A147+Sheet1!$B$22 -> -2.380234145 | C147: 0.3596345248
A148: 0.9 | B148: =Sheet1!$B$14*A148^8+Sheet1!$B$15*A148^7+Sheet1!$B$16*A148^6+Sheet1!$B$17*A148^5+Sheet1!$B$18*A148^4+Sheet1!$B$19*A148^3+Sheet1!$B$20*A148^2+Sheet1!$B$21*A148+Sheet1!$B$22 -> -2.47970569 | C148: 0.43046721
A149: 0.92 | B149: =Sheet1!$B$14*A149^8+Sheet1!$B$15*A149^7+Sheet1!$B$16*A149^6+Sheet1!$B$17*A149^5+Sheet1!$B$18*A149^4+Sheet1!$B$19*A149^3+Sheet1!$B$20*A149^2+Sheet1!$B$21*A149+Sheet1!$B$22 -> -2.582533982 | C149: 0.5132188731
A150: 0.94 | B150: =Sheet1!$B$14*A150^8+Sheet1!$B$15*A150^7+Sheet1!$B$16*A150^6+Sheet1!$B$17*A150^5+Sheet1!$B$18*A150^4+Sheet1!$B$19*A150^3+Sheet1!$B$20*A150^2+Sheet1!$B$21*A150+Sheet1!$B$22 -> -2.687494786 | C150: 0.6095689385
A151: 0.96 | B151: =Sheet1!$B$14*A151^8+Sheet1!$B$15*A151^7+Sheet1!$B$16*A151^6+Sheet1!$B$17*A151^5+Sheet1!$B$18*A151^4+Sheet1!$B$19*A151^3+Sheet1!$B$20*A151^2+Sheet1!$B$21*A151+Sheet1!$B$22 -> -2.793175246 | C151: 0.721389579
A152: 0.98 | B152: =Sheet1!$B$14*A152^8+Sheet1!$B$15*A152^7+Sheet1!$B$16*A152^6+Sheet1!$B$17*A152^5+Sheet1!$B$18*A152^4+Sheet1!$B$19*A152^3+Sheet1!$B$20*A152^2+Sheet1!$B$21*A152+Sheet1!$B$22 -> -2.897957288 | C152: 0.8507630226
A153: 1 | B153: =Sheet1!$B$14*A153^8+Sheet1!$B$15*A153^7+Sheet1!$B$16*A153^6+Sheet1!$B$17*A153^5+Sheet1!$B$18*A153^4+Sheet1!$B$19*A153^3+Sheet1!$B$20*A153^2+Sheet1!$B$21*A153+Sheet1!$B$22 -> -3 | C153: 1
A154: 1.02 | B154: =Sheet1!$B$14*A154^8+Sheet1!$B$15*A154^7+Sheet1!$B$16*A154^6+Sheet1!$B$17*A154^5+Sheet1!$B$18*A154^4+Sheet1!$B$19*A154^3+Sheet1!$B$20*A154^2+Sheet1!$B$21*A154+Sheet1!$B$22 -> -3.097220949 | C154: 1.171659381
A155: 1.04 | B155: =Sheet1!$B$14*A155^8+Sheet1!$B$15*A155^7+Sheet1!$B$16*A155^6+Sheet1!$B$17*A155^5+Sheet1!$B$18*A155^4+Sheet1!$B$19*A155^3+Sheet1!$B$20*A155^2+Sheet1!$B$21*A155+Sheet1!$B$22 -> -3.187276389 | C155: 1.36856905
A156: 1.06 | B156: =Sheet1!$B$14*A156^8+Sheet1!$B$15*A156^7+Sheet1!$B$16*A156^6+Sheet1!$B$17*A156^5+Sheet1!$B$18*A156^4+Sheet1!$B$19*A156^3+Sheet1!$B$20*A156^2+Sheet1!$B$21*A156+Sheet1!$B$22 -> -3.267540321 | C156: 1.593848075
A157: 1.08 | B157: =Sheet1!$B$14*A157^8+Sheet1!$B$15*A157^7+Sheet1!$B$16*A157^6+Sheet1!$B$17*A157^5+Sheet1!$B$18*A157^4+Sheet1!$B$19*A157^3+Sheet1!$B$20*A157^2+Sheet1!$B$21*A157+Sheet1!$B$22 -> -3.335082348 | C157: 1.85093021
A158: 1.1 | B158: =Sheet1!$B$14*A158^8+Sheet1!$B$15*A158^7+Sheet1!$B$16*A158^6+Sheet1!$B$17*A158^5+Sheet1!$B$18*A158^4+Sheet1!$B$19*A158^3+Sheet1!$B$20*A158^2+Sheet1!$B$21*A158+Sheet1!$B$22 -> -3.38664429 | C158: 2.14358881
A159: 1.12 | B159: =Sheet1!$B$14*A159^8+Sheet1!$B$15*A159^7+Sheet1!$B$16*A159^6+Sheet1!$B$17*A159^5+Sheet1!$B$18*A159^4+Sheet1!$B$19*A159^3+Sheet1!$B$20*A159^2+Sheet1!$B$21*A159+Sheet1!$B$22 -> -3.41861551 | C159: 2.475963176
A160: 1.14 | B160: =Sheet1!$B$14*A160^8+Sheet1!$B$15*A160^7+Sheet1!$B$16*A160^6+Sheet1!$B$17*A160^5+Sheet1!$B$18*A160^4+Sheet1!$B$19*A160^3+Sheet1!$B$20*A160^2+Sheet1!$B$21*A160+Sheet1!$B$22 -> -3.427006888 | C160: 2.852586422
A161: 1.16 | B161: =Sheet1!$B$14*A161^8+Sheet1!$B$15*A161^7+Sheet1!$B$16*A161^6+Sheet1!$B$17*A161^5+Sheet1!$B$18*A161^4+Sheet1!$B$19*A161^3+Sheet1!$B$20*A161^2+Sheet1!$B$21*A161+Sheet1!$B$22 -> -3.407423417 | C161: 3.278414892
A162: 1.18 | B162: =Sheet1!$B$14*A162^8+Sheet1!$B$15*A162^7+Sheet1!$B$16*A162^6+Sheet1!$B$17*A162^5+Sheet1!$B$18*A162^4+Sheet1!$B$19*A162^3+Sheet1!$B$20*A162^2+Sheet1!$B$21*A162+Sheet1!$B$22 -> -3.355035347 | C162: 3.758859203
A163: 1.2 | B163: =Sheet1!$B$14*A163^8+Sheet1!$B$15*A163^7+Sheet1!$B$16*A163^6+Sheet1!$B$17*A163^5+Sheet1!$B$18*A163^4+Sheet1!$B$19*A163^3+Sheet1!$B$20*A163^2+Sheet1!$B$21*A163+Sheet1!$B$22 -> -3.26454784 | C163: 4.29981696
A164: 1.22 | B164: =Sheet1!$B$14*A164^8+Sheet1!$B$15*A164^7+Sheet1!$B$16*A164^6+Sheet1!$B$17*A164^5+Sheet1!$B$18*A164^4+Sheet1!$B$19*A164^3+Sheet1!$B$20*A164^2+Sheet1!$B$21*A164+Sheet1!$B$22 -> -3.13016908 | C164: 4.907707213
A165: 1.24 | B165: =Sheet1!$B$14*A165^8+Sheet1!$B$15*A165^7+Sheet1!$B$16*A165^6+Sheet1!$B$17*A165^5+Sheet1!$B$18*A165^4+Sheet1!$B$19*A165^3+Sheet1!$B$20*A165^2+Sheet1!$B$21*A165+Sheet1!$B$22 -> -2.945576778 | C165: 5.589506703
A166: 1.26 | B166: =Sheet1!$B$14*A166^8+Sheet1!$B$15*A166^7+Sheet1!$B$16*A166^6+Sheet1!$B$17*A166^5+Sheet1!$B$18*A166^4+Sheet1!$B$19*A166^3+Sheet1!$B$20*A166^2+Sheet1!$B$21*A166+Sheet1!$B$22 -> -2.703883023 | C166: 6.352787975
A167: 1.28 | B167: =Sheet1!$B$14*A167^8+Sheet1!$B$15*A167^7+Sheet1!$B$16*A167^6+Sheet1!$B$17*A167^5+Sheet1!$B$18*A167^4+Sheet1!$B$19*A167^3+Sheet1!$B$20*A167^2+Sheet1!$B$21*A167+Sheet1!$B$22 -> -2.397597427 | C167: 7.205759404
A168: 1.3 | B168: =Sheet1!$B$14*A168^8+Sheet1!$B$15*A168^7+Sheet1!$B$16*A168^6+Sheet1!$B$17*A168^5+Sheet1!$B$18*A168^4+Sheet1!$B$19*A168^3+Sheet1!$B$20*A168^2+Sheet1!$B$21*A168+Sheet1!$B$22 -> -2.01858849 | C168: 8.15730721
A169: 1.32 | B169: =Sheet1!$B$14*A169^8+Sheet1!$B$15*A169^7+Sheet1!$B$16*A169^6+Sheet1!$B$17*A169^5+Sheet1!$B$18*A169^4+Sheet1!$B$19*A169^3+Sheet1!$B$20*A169^2+Sheet1!$B$21*A169+Sheet1!$B$22 -> -1.558043152 | C169: 9.217039521
A170: 1.34 | B170: =Sheet1!$B$14*A170^8+Sheet1!$B$15*A170^7+Sheet1!$B$16*A170^6+Sheet1!$B$17*A170^5+Sheet1!$B$18*A170^4+Sheet1!$B$19*A170^3+Sheet1!$B$20*A170^2+Sheet1!$B$21*A170+Sheet1!$B$22 -> -1.006424448 | C170: 10.39533255
A171: 1.36 | B171: =Sheet1!$B$14*A171^8+Sheet1!$B$15*A171^7+Sheet1!$B$16*A171^6+Sheet1!$B$17*A171^5+Sheet1!$B$18*A171^4+Sheet1!$B$19*A171^3+Sheet1!$B$20*A171^2+Sheet1!$B$21*A171+Sheet1!$B$22 -> -0.3534272263 | C171: 11.70337894
A172: 1.38 | B172: =Sheet1!$B$14*A172^8+Sheet1!$B$15*A172^7+Sheet1!$B$16*A172^6+Sheet1!$B$17*A172^5+Sheet1!$B$18*A172^4+Sheet1!$B$19*A172^3+Sheet1!$B$20*A172^2+Sheet1!$B$21*A172+Sheet1!$B$22 -> 0.41206815 | C172: 13.15323839
A173: 1.4 | B173: =Sheet1!$B$14*A173^8+Sheet1!$B$15*A173^7+Sheet1!$B$16*A173^6+Sheet1!$B$17*A173^5+Sheet1!$B$18*A173^4+Sheet1!$B$19*A173^3+Sheet1!$B$20*A173^2+Sheet1!$B$21*A173+Sheet1!$B$22 -> 1.30204416 | C173: 14.75789056
A174: 1.42 | B174: =Sheet1!$B$14*A174^8+Sheet1!$B$15*A174^7+Sheet1!$B$16*A174^6+Sheet1!$B$17*A174^5+Sheet1!$B$18*A174^4+Sheet1!$B$19*A174^3+Sheet1!$B$20*A174^2+Sheet1!$B$21*A174+Sheet1!$B$22 -> 2.329396622 | C174: 16.5312904
A175: 1.44 | B175: =Sheet1!$B$14*A175^8+Sheet1!$B$15*A175^7+Sheet1!$B$16*A175^6+Sheet1!$B$17*A175^5+Sheet1!$B$18*A175^4+Sheet1!$B$19*A175^3+Sheet1!$B$20*A175^2+Sheet1!$B$21*A175+Sheet1!$B$22 -> 3.507987383 | C175: 18.48842589
A176: 1.46 | B176: =Sheet1!$B$14*A176^8+Sheet1!$B$15*A176^7+Sheet1!$B$16*A176^6+Sheet1!$B$17*A176^5+Sheet1!$B$18*A176^4+Sheet1!$B$19*A176^3+Sheet1!$B$20*A176^2+Sheet1!$B$21*A176+Sheet1!$B$22 -> 4.852699272 | C176: 20.64537835
A177: 1.48 | B177: =Sheet1!$B$14*A177^8+Sheet1!$B$15*A177^7+Sheet1!$B$16*A177^6+Sheet1!$B$17*A177^5+Sheet1!$B$18*A177^4+Sheet1!$B$19*A177^3+Sheet1!$B$20*A177^2+Sheet1!$B$21*A177+Sheet1!$B$22 -> 6.379493384 | C177: 23.01938535
A178: 1.5 | B178: =Sheet1!$B$14*A178^8+Sheet1!$B$15*A178^7+Sheet1!$B$16*A178^6+Sheet1!$B$17*A178^5+Sheet1!$B$18*A178^4+Sheet1!$B$19*A178^3+Sheet1!$B$20*A178^2+Sheet1!$B$21*A178+Sheet1!$B$22 -> 8.10546875 | C178: 25.62890625
A179: 1.52 | B179: =Sheet1!$B$14*A179^8+Sheet1!$B$15*A179^7+Sheet1!$B$16*A179^6+Sheet1!$B$17*A179^5+Sheet1!$B$18*A179^4+Sheet1!$B$19*A179^3+Sheet1!$B$20*A179^2+Sheet1!$B$21*A179+Sheet1!$B$22 -> 10.04892448 | C179: 28.49369056
A180: 1.54 | B180: =Sheet1!$B$14*A180^8+Sheet1!$B$15*A180^7+Sheet1!$B$16*A180^6+Sheet1!$B$17*A180^5+Sheet1!$B$18*A180^4+Sheet1!$B$19*A180^3+Sheet1!$B$20*A180^2+Sheet1!$B$21*A180+Sheet1!$B$22 -> 12.22942445 | C180: 31.63484906
A181: 1.56 | B181: =Sheet1!$B$14*A181^8+Sheet1!$B$15*A181^7+Sheet1!$B$16*A181^6+Sheet1!$B$17*A181^5+Sheet1!$B$18*A181^4+Sheet1!$B$19*A181^3+Sheet1!$B$20*A181^2+Sheet1!$B$21*A181+Sheet1!$B$22 -> 14.66786455 | C181: 35.07492789
A182: 1.58 | B182: =Sheet1!$B$14*A182^8+Sheet1!$B$15*A182^7+Sheet1!$B$16*A182^6+Sheet1!$B$17*A182^5+Sheet1!$B$18*A182^4+Sheet1!$B$19*A182^3+Sheet1!$B$20*A182^2+Sheet1!$B$21*A182+Sheet1!$B$22 -> 17.38654266 | C182: 38.83798553
A183: 1.6 | B183: =Sheet1!$B$14*A183^8+Sheet1!$B$15*A183^7+Sheet1!$B$16*A183^6+Sheet1!$B$17*A183^5+Sheet1!$B$18*A183^4+Sheet1!$B$19*A183^3+Sheet1!$B$20*A183^2+Sheet1!$B$21*A183+Sheet1!$B$22 -> 20.40923136 | C183: 42.94967296
A184: 1.62 | B184: =Sheet1!$B$14*A184^8+Sheet1!$B$15*A184^7+Sheet1!$B$16*A184^6+Sheet1!$B$17*A184^5+Sheet1!$B$18*A184^4+Sheet1!$B$19*A184^3+Sheet1!$B$20*A184^2+Sheet1!$B$21*A184+Sheet1!$B$22 -> 23.76125341 | C184: 47.43731683
A185: 1.64 | B185: =Sheet1!$B$14*A185^8+Sheet1!$B$15*A185^7+Sheet1!$B$16*A185^6+Sheet1!$B$17*A185^5+Sheet1!$B$18*A185^4+Sheet1!$B$19*A185^3+Sheet1!$B$20*A185^2+Sheet1!$B$21*A185+Sheet1!$B$22 -> 27.46956022 | C185: 52.33000598
A186: 1.66 | B186: =Sheet1!$B$14*A186^8+Sheet1!$B$15*A186^7+Sheet1!$B$16*A186^6+Sheet1!$B$17*A186^5+Sheet1!$B$18*A186^4+Sheet1!$B$19*A186^3+Sheet1!$B$20*A186^2+Sheet1!$B$21*A186+Sheet1!$B$22 -> 31.56281319 | C186: 57.65868114
A187: 1.68 | B187: =Sheet1!$B$14*A187^8+Sheet1!$B$15*A187^7+Sheet1!$B$16*A187^6+Sheet1!$B$17*A187^5+Sheet1!$B$18*A187^4+Sheet1!$B$19*A187^3+Sheet1!$B$20*A187^2+Sheet1!$B$21*A187+Sheet1!$B$22 -> 36.0714682 | C187: 63.45622812
A188: 1.7 | B188: =Sheet1!$B$14*A188^8+Sheet1!$B$15*A188^7+Sheet1!$B$16*A188^6+Sheet1!$B$17*A188^5+Sheet1!$B$18*A188^4+Sheet1!$B$19*A188^3+Sheet1!$B$20*A188^2+Sheet1!$B$21*A188+Sheet1!$B$22 -> 41.02786311 | C188: 69.75757441
A189: 1.72 | B189: =Sheet1!$B$14*A189^8+Sheet1!$B$15*A189^7+Sheet1!$B$16*A189^6+Sheet1!$B$17*A189^5+Sheet1!$B$18*A189^4+Sheet1!$B$19*A189^3+Sheet1!$B$20*A189^2+Sheet1!$B$21*A189+Sheet1!$B$22 -> 46.46630859 | C189: 76.59978934
A190: 1.74 | B190: =Sheet1!$B$14*A190^8+Sheet1!$B$15*A190^7+Sheet1!$B$16*A190^6+Sheet1!$B$17*A190^5+Sheet1!$B$18*A190^4+Sheet1!$B$19*A190^3+Sheet1!$B$20*A190^2+Sheet1!$B$21*A190+Sheet1!$B$22 -> 52.42318213 | C190: 84.02218792
A191: 1.76 | B191: =Sheet1!$B$14*A191^8+Sheet1!$B$15*A191^7+Sheet1!$B$16*A191^6+Sheet1!$B$17*A191^5+Sheet1!$B$18*A191^4+Sheet1!$B$19*A191^3+Sheet1!$B$20*A191^2+Sheet1!$B$21*A191+Sheet1!$B$22 -> 58.93702549 | C191: 92.06643835
A192: 1.78 | B192: =Sheet1!$B$14*A192^8+Sheet1!$B$15*A192^7+Sheet1!$B$16*A192^6+Sheet1!$B$17*A192^5+Sheet1!$B$18*A192^4+Sheet1!$B$19*A192^3+Sheet1!$B$20*A192^2+Sheet1!$B$21*A192+Sheet1!$B$22 -> 66.0486455 | C192: 100.7766734
A193: 1.8 | B193: =Sheet1!$B$14*A193^8+Sheet1!$B$15*A193^7+Sheet1!$B$16*A193^6+Sheet1!$B$17*A193^5+Sheet1!$B$18*A193^4+Sheet1!$B$19*A193^3+Sheet1!$B$20*A193^2+Sheet1!$B$21*A193+Sheet1!$B$22 -> 73.80121856 | C193: 110.1996058
A194: 1.82 | B194: =Sheet1!$B$14*A194^8+Sheet1!$B$15*A194^7+Sheet1!$B$16*A194^6+Sheet1!$B$17*A194^5+Sheet1!$B$18*A194^4+Sheet1!$B$19*A194^3+Sheet1!$B$20*A194^2+Sheet1!$B$21*A194+Sheet1!$B$22 -> 82.24039854 | C194: 120.3846471
A195: 1.84 | B195: =Sheet1!$B$14*A195^8+Sheet1!$B$15*A195^7+Sheet1!$B$16*A195^6+Sheet1!$B$17*A195^5+Sheet1!$B$18*A195^4+Sheet1!$B$19*A195^3+Sheet1!$B$20*A195^2+Sheet1!$B$21*A195+Sheet1!$B$22 -> 91.41442853 | C195: =cc*A195^p -> 131.3840315
A196: =A195+dx -> 1.86 | B196: =Sheet1!$B$14*A196^8+Sheet1!$B$15*A196^7+Sheet1!$B$16*A196^6+Sheet1!$B$17*A196^5+Sheet1!$B$18*A196^4+Sheet1!$B$19*A196^3+Sheet1!$B$20*A196^2+Sheet1!$B$21*A196+Sheet1!$B$22 -> 101.3742564 | C196: 143.2529433
A197: 1.88 | B197: =Sheet1!$B$14*A197^8+Sheet1!$B$15*A197^7+Sheet1!$B$16*A197^6+Sheet1!$B$17*A197^5+Sheet1!$B$18*A197^4+Sheet1!$B$19*A197^3+Sheet1!$B$20*A197^2+Sheet1!$B$21*A197+Sheet1!$B$22 -> 112.1736539 | C197: 156.0496483
A198: 1.9 | B198: =Sheet1!$B$14*A198^8+Sheet1!$B$15*A198^7+Sheet1!$B$16*A198^6+Sheet1!$B$17*A198^5+Sheet1!$B$18*A198^4+Sheet1!$B$19*A198^3+Sheet1!$B$20*A198^2+Sheet1!$B$21*A198+Sheet1!$B$22 -> 123.8693405 | C198: 169.8356304
A199: 1.92 | B199: =Sheet1!$B$14*A199^8+Sheet1!$B$15*A199^7+Sheet1!$B$16*A199^6+Sheet1!$B$17*A199^5+Sheet1!$B$18*A199^4+Sheet1!$B$19*A199^3+Sheet1!$B$20*A199^2+Sheet1!$B$21*A199+Sheet1!$B$22 -> 136.5211101 | C199: 184.6757322
A200: 1.94 | B200: =Sheet1!$B$14*A200^8+Sheet1!$B$15*A200^7+Sheet1!$B$16*A200^6+Sheet1!$B$17*A200^5+Sheet1!$B$18*A200^4+Sheet1!$B$19*A200^3+Sheet1!$B$20*A200^2+Sheet1!$B$21*A200+Sheet1!$B$22 -> 150.1919631 | C200: 200.6383
A201: 1.96 | B201: =Sheet1!$B$14*A201^8+Sheet1!$B$15*A201^7+Sheet1!$B$16*A201^6+Sheet1!$B$17*A201^5+Sheet1!$B$18*A201^4+Sheet1!$B$19*A201^3+Sheet1!$B$20*A201^2+Sheet1!$B$21*A201+Sheet1!$B$22 -> 164.9482417 | C201: 217.7953338
... 3 more rows

Sheet Sheet3
